fUSD/lending_fUSD_20240713
["ID","MTS","AMOUNT","RATE_DAILY","PERIOD"]
[331914548,1720834232599,-16974.009,0.00013543,2]
[331914549,1720834232609,-255.0,0.00013569,2]
[331914550,1720834232619,-382.72532093,0.00013574,2]
[331914551,1720834232633,-420.0,0.00013609,2]
[331914552,1720834232642,-195.901772,0.00013667,2]
[331914553,1720834232652,-200.0,0.00013699,2]
[331914554,1720834232662,-220.87,0.00013699,2]
[331914555,1720834232671,-3585.79,0.00013699,2]
[331914556,1720834232681,-250.0,0.00013699,2]
[331914557,1720834232690,-1901.47,0.00013699,2]
[331914558,1720834232699,-150.0,0.00013721,2]
[331914559,1720834232710,-150.0,0.00013724,2]
[331914560,1720834232719,-150.0,0.00013724,2]
[331914561,1720834232728,-150.0,0.00013734,2]
[331914562,1720834232737,-150.0,0.00013735,2]
[331914563,1720834232747,-12775.20479459,0.00013736,2]
[331914564,1720834232756,-150.0,0.00013747,2]
[331914565,1720834232765,-150.0,0.00013751,2]
[331914566,1720834232774,-150.0,0.00013761,2]
[331914567,1720834232784,-150.0,0.00013762,2]
[331914568,1720834232793,-150.0,0.00013786,2]
[331914569,1720834232802,-150.0,0.00013792,2]
[331914570,1720834232811,-150.0,0.00013793,2]
[331914571,1720834232821,-150.0,0.00013796,2]
[331914572,1720834232830,-150.0,0.00013796,2]
[331914573,1720834232840,-1460.3512,0.000138,2]
[331914574,1720834232849,-2195.6635,0.000138,2]
[331914575,1720834232858,-178.18514973,0.000138,2]
[331914576,1720834232868,-150.0,0.00013809,2]
[331914577,1720834232877,-150.0,0.00013814,2]
[331914578,1720834232886,-150.0,0.00013817,2]
[331914579,1720834232895,-150.0,0.00013818,2]
[331914580,1720834232904,-150.0,0.00013821,2]
[331914581,1720834232913,-150.0,0.00013821,2]
[331914582,1720834232922,-150.0,0.00013825,2]
[331914583,1720834232931,-178.1851497,0.00013833,2]
[331914584,1720834232940,-195.901772,0.00013838,2]
[331914585,1720834232950,-150.0,0.00013838,2]
[331914586,1720834232959,-150.0,0.0001385,2]
[331914587,1720834232970,-150.0,0.00013854,2]
[331914588,1720834232979,-150.0,0.00013858,2]
[331914589,1720834232989,-2818.27469,0.0001386,2]
[331914590,1720834232998,-178.1851497,0.00013867,2]
[331914591,1720834233007,-150.0,0.00013868,2]
[331914592,1720834233017,-150.0,0.00013873,2]
[331914593,1720834233026,-150.0,0.00013874,2]
[331914594,1720834233035,-150.0,0.00013885,2]
[331914595,1720834233045,-150.0,0.00013885,2]
[331914596,1720834233054,-500.0,0.00013899,2]
[331914597,1720834233064,-150.0,0.00013899,2]
[331914598,1720834233074,-500.0,0.00013899,2]
[331914599,1720834233083,-1621.73,0.00013899,2]
[331914600,1720834233092,-500.0,0.00013899,2]
[331914601,1720834233102,-500.0,0.00013899,2]
[331914602,1720834233111,-500.0,0.00013899,2]
[331914603,1720834233120,-500.0,0.00013899,2]
[331914604,1720834233129,-500.0,0.00013899,2]
[331914605,1720834233138,-500.0,0.00013899,2]
[331914606,1720834233149,-500.0,0.00013899,2]
[331914607,1720834233159,-494.56698099,0.00013899,2]
[331914608,1720834233168,-500.0,0.00013899,2]
[331914609,1720834233181,-500.0,0.00013899,2]
[331914610,1720834233191,-500.0,0.00013899,2]
[331914611,1720834233201,-500.0,0.00013899,2]
[331914612,1720834233210,-500.0,0.00013899,2]
[331914613,1720834233220,-500.0,0.00013899,2]
[331914614,1720834233231,-500.0,0.00013899,2]
[331914615,1720834233240,-500.0,0.00013899,2]
[331914616,1720834233250,-500.0,0.00013899,2]
[331914617,1720834233259,-1698.44,0.00013899,2]
[331914618,1720834233269,-2532.42,0.00013899,2]
[331914619,1720834233278,-155.0,0.00013899,2]
[331914620,1720834233287,-203.24773708,0.00013899,2]
[331914621,1720834233297,-500.0,0.00013899,2]
[331914622,1720834233306,-500.0,0.00013899,2]
[331914623,1720834233315,-240.69498303,0.00013899,2]
[331914624,1720834233325,-500.0,0.00013899,2]
[331914625,1720834233335,-500.0,0.00013899,2]
[331914626,1720834233344,-242.37963482,0.00013899,2]
[331914627,1720834233354,-191.36530944,0.00013899,2]
[331914628,1720834233363,-191.36530943,0.000139,2]
[331914629,1720834233372,-1000.0,0.000139,2]
[331914630,1720834233381,-12387.8834,0.000139,2]
[331914631,1720834233390,-241472.5554,0.000139,2]
[331914632,1720834233401,-210.9555,0.000139,2]
[331914633,1720834233411,-203.51161649,0.000139,2]
[331914634,1720834233420,-435.14473651,0.000139,2]
[331914635,1720834233429,-178.1851497,0.000139,2]
[331914636,1720834233438,-2544.08831349,0.000139,2]
[331914637,1720834233448,-150.0,0.00013902,2]
[331914638,1720834233458,-150.0,0.00013904,2]
[331914639,1720834233467,-150.0,0.00013907,2]
[331914640,1720834233477,-150.0,0.00013908,2]
[331914641,1720834233486,-150.0,0.00013911,2]
[331914642,1720834233496,-150.0,0.00013913,2]
[331914643,1720834233506,-150.0,0.00013917,2]
[331914644,1720834233515,-150.0,0.00013923,2]
[331914645,1720834233524,-500.0,0.0001393,2]
[331914646,1720834233534,-500.0,0.0001393,2]
[331914647,1720834233543,-500.0,0.0001393,2]
[331914648,1720834233552,-500.0,0.0001393,2]
[331914649,1720834233561,-500.0,0.0001393,2]
[331914650,1720834233571,-369.7565,0.0001393,2]
[331914651,1720834233580,-1000.0,0.0001393,2]
[331914652,1720834233589,-1000.0,0.0001393,2]
[331914653,1720834233598,-1000.0,0.0001393,2]
[331914654,1720834233607,-1000.0,0.0001393,2]
[331914655,1720834233617,-1000.0,0.0001393,2]
[331914656,1720834233626,-1000.0,0.0001393,2]
[331914657,1720834233636,-1000.0,0.0001393,2]
[331914658,1720834233647,-1000.0,0.0001393,2]
[331914659,1720834233656,-1000.0,0.0001393,2]
[331914660,1720834233670,-1000.0,0.0001393,2]
[331914661,1720834233679,-525.0412,0.0001393,2]
[331914662,1720834233691,-150.0,0.00013933,2]
[331914663,1720834233700,-150.0,0.00013933,2]
[331914664,1720834233709,-150.0,0.00013936,2]
[331914665,1720834233719,-150.0,0.00013942,2]
[331914666,1720834233728,-150.0,0.00013943,2]
[331914667,1720834233738,-150.0,0.00013945,2]
[331914668,1720834233747,-150.0,0.00013948,2]
[331914669,1720834233756,-150.0,0.00013949,2]
[331914670,1720834233765,-500.0,0.00013954,2]
[331914671,1720834233775,-150.0,0.00013954,2]
[331914672,1720834233784,-500.0,0.00013954,2]
[331914673,1720834233793,-1621.73,0.00013954,2]
[331914674,1720834233802,-500.0,0.00013954,2]
[331914675,1720834233812,-280.67418306,0.00013954,2]
[331914676,1720834233821,-500.0,0.00013954,2]
[331914677,1720834233830,-500.0,0.00013954,2]
[331914678,1720834233840,-150.0,0.00013954,2]
[331914679,1720834233849,-500.0,0.00013954,2]
[331914680,1720834233858,-500.0,0.00013954,2]
[331914681,1720834233867,-500.0,0.00013954,2]
[331914682,1720834233877,-500.0,0.00013954,2]
[331914683,1720834233886,-472.71,0.00013954,2]
[331914684,1720834233897,-500.0,0.00013954,2]
[331914685,1720834233906,-500.0,0.00013954,2]
[331914686,1720834233915,-588.31,0.00013954,2]
[331914687,1720834233924,-500.0,0.00013954,2]
[331914688,1720834233933,-500.0,0.00013954,2]
[331914689,1720834233943,-500.0,0.00013954,2]
[331914690,1720834233952,-500.0,0.00013954,2]
[331914691,1720834233961,-1698.44,0.00013954,2]
[331914692,1720834233971,-2532.42,0.00013954,2]
[331914694,1720834233980,-500.0,0.00013954,2]
[331914695,1720834233989,-500.0,0.00013954,2]
[331914697,1720834233998,-500.0,0.00013954,2]
[331914699,1720834234007,-581.23299688,0.00013954,2]
[331914701,1720834234017,-150.0,0.00013955,2]
[331914703,1720834234026,-150.0,0.0001396,2]
[331914705,1720834234036,-150.0,0.00013963,2]
[331914707,1720834234045,-150.0,0.00013965,2]
[331914709,1720834234054,-150.0,0.00013965,2]
[331914711,1720834234064,-150.0,0.00013966,2]
[331914713,1720834234073,-150.0,0.00013966,2]
[331914715,1720834234082,-150.0,0.00013966,2]
[331914717,1720834234091,-150.0,0.00013968,2]
[331914718,1720834234101,-150.0,0.00013968,2]
[331914719,1720834234110,-150.0,0.00013974,2]
[331914720,1720834234119,-150.0,0.0001398,2]
[331914721,1720834234127,-150.0,0.00013981,2]
[331914722,1720834234136,-198.32532841,0.0001399,2]
[331914723,1720834234146,-2186.78761502,0.0001399,2]
[331914724,1720834234155,-2740.59105329,0.00013999,2]
[331914726,1720834234164,-97457.2661411,0.00013999,2]
[331914728,1720834234173,-15270.5665249,0.00013999,2]
[331914729,1720834234181,-25551.6587615,0.00013999,2]
[331914731,1720834234189,-9496.7174166,0.00013999,2]
[331914732,1720834234197,-1311.42,0.00013999,2]
[331914733,1720834234205,-4193.06350497,0.00013999,2]
[331914734,1720834234213,-541709.83865542,0.00014,2]
[331914735,1720834234757,-191.36530943,0.000139,2]
[331914736,1720834234930,-808.63469057,0.00014,2]
[331914737,1720834234942,-74475.61951849,0.00014,2]
[331914738,1720834234953,-1047.7158435,0.00014,2]
[331914739,1720834234964,-992.484,0.00014,2]
[331914740,1720834234974,-800.0,0.00014,2]
[331914741,1720834234984,-7239.99999,0.00014,2]
[331914742,1720834235521,1136.48062385,0.00011199,2]
[331914750,1720834238109,-155.08196329,0.00013574,2]
[331914751,1720834238119,-217.46848566,0.00013899,2]
[331914752,1720834238130,-456.42762949,0.00013899,2]
[331914753,1720834238139,-276.86949704,0.00013899,2]
[331914754,1720834238149,-3587.32305133,0.00014,2]
[331914755,1720834238257,-655.82000289,0.00014,2]
[331914756,1720834238268,-667.76472037,0.00014,2]
[331914757,1720834238279,-326.82220256,0.00014,2]
[331914758,1720834238290,-1654.53650654,0.00014,2]
[331914759,1720834238301,-373621.0037943,0.00014,2]
[331914760,1720834238310,-54380.35984693,0.00014,2]
[331914761,1720834238424,-2608.99231382,0.00014,2]
[331914762,1720834238436,-296.42581676,0.00014,2]
[331914763,1720834238447,-1072.50233623,0.00014,2]
[331914764,1720834238458,-7015.537408,0.00014,2]
[331914765,1720834238469,-1969.22712928,0.00014,2]
[331914766,1720834238480,-4795.42269386,0.00014,2]
[331914938,1720834240312,-3185.13843654,0.000119,2]
[331914940,1720834240321,-6729.58727002,0.00014,2]
[331914955,1720834240453,-698.18932838,0.00014,2]
[331914957,1720834240464,-3210.81251125,0.00014,2]
[331914960,1720834240475,-12945.27415203,0.00014,2]
[331914962,1720834240486,-850.24946448,0.00014,2]
[331914964,1720834240497,-1226.17665672,0.00014,2]
[331914975,1720834240592,-938.35073009,0.00014,2]
[331914978,1720834240604,-770.54761456,0.00014,2]
[331915020,1720834243158,-346.16649608,0.00013899,2]
[331915021,1720834244596,-2.88195668,0.00013899,2]
[331915022,1720834244606,-335.42374482,0.00013899,2]
[331915023,1720834244615,-279.85454423,0.00013899,2]
[331915024,1720834244624,-3595.65820402,0.00014,2]
[331915025,1720834244635,-31445.4474969,0.00014,2]
[331915026,1720834244646,-305.20127118,0.00014,2]
[331915027,1720834244794,-3021.81462727,0.00014,2]
[331915028,1720834244806,-2396.5336603,0.00014,2]
[331915029,1720834244817,-760.58246907,0.00014,2]
[331915030,1720834244828,-562.74061239,0.00014,2]
[331915031,1720834244838,-482.00237009,0.00014,2]
[331915032,1720834244850,-1093.93961604,0.00014,2]
[331915033,1720834244860,-582.14221486,0.00014,2]
[331915034,1720834244871,-636.87818,0.00014,2]
[331915035,1720834244886,-392.29490377,0.00014,2]
[331915038,1720834246325,-228.92320809,0.00013899,2]
[331915040,1720834246335,-193.48767299,0.00013899,2]
[331915041,1720834246345,-15.87132733,0.000139,2]
[331915042,1720834246506,-159.08645734,0.000139,2]
[331915043,1720834246516,-3381.53429913,0.00014,2]
[331915044,1720834246528,-269.38241397,0.00014,2]
[331915045,1720834246539,-852.36839448,0.00014,2]
[331915046,1720834246550,-500.0,0.00014,2]
[331915047,1720834246562,-27466.2388339,0.00014,2]
[331915048,1720834246574,-461258.43408782,0.00014,2]
[331915049,1720834246587,-16994.01969472,0.00014,2]
[331915050,1720834246601,-803.33940501,0.00014,2]
[331915051,1720834246613,-572.85,0.00014,2]
[331915052,1720834246625,-1563.91,0.00014,2]
[331915053,1720834246638,-2905.94209052,0.00014,2]
[331915054,1720834247113,-1120.88,0.00014,2]
[331915055,1720834247125,-3278.93484286,0.00014,2]
[331915056,1720834247136,-1595.25934319,0.00014,2]
[331915058,1720834251281,1368.47102883,0.00011199,2]
[331915064,1720834511879,640.0,0.00025,60]
[331915065,1720834511915,390.9,0.00010954,2]
[331915067,1720834559932,757.04237542,0.00011199,2]
[331915068,1720834659745,470.87481779,0.00011199,2]
[331915069,1720834668956,438.37963226,0.00011199,2]
[331915070,1720834690985,155.24504916,0.00011199,2]
[331915071,1720834708887,155.17013277,0.00011199,2]
[331915078,1720834894443,261.26216543,0.00011199,2]
[331915084,1720835057565,426.3,0.00010873,2]
[331915086,1720835112519,227.34202992,0.00011199,2]
[331915087,1720835123511,227.34202992,0.00011199,2]
[331915092,1720835204776,699.78507593,0.00011199,2]
[331915105,1720835277762,155.0,0.00011199,2]
[331915106,1720835292765,155.0,0.00011199,2]
[331915116,1720835330003,1020.78186448,0.00011199,2]
[331915118,1720835339750,256.02451193,0.00011199,2]
[331915121,1720835347263,190.56427609,0.00011199,2]
[331915154,1720835358701,536.04925597,0.00011199,2]
[331915157,1720835370697,219.57874617,0.00011199,2]
[331915162,1720835389443,269.99876497,0.00011199,2]
[331915163,1720835389667,265.81765155,0.00011199,2]
[331915174,1720835432340,-848.0,0.00012272,2]
[331915175,1720835432350,-287.04742753,0.00012273,2]
[331915176,1720835432359,-255.1387694,0.00012273,2]
[331915177,1720835432368,-300.0,0.00012301,2]
[331915178,1720835432381,-227.34202992,0.00012302,2]
[331915179,1720835432390,-483.56089257,0.00012727,2]
[331915180,1720835432404,-16.43910743,0.00012727,2]
[331915181,1720835432413,-250.0,0.00012731,2]
[331915182,1720835432422,-1000.0,0.00012746,2]
[331915183,1720835432431,-2442.02,0.00012761,2]
[331915184,1720835432440,-765.27,0.00012762,2]
[331915185,1720835432450,-8493.7,0.00012762,2]
[331915186,1720835432459,-250.0,0.00012788,2]
[331915187,1720835432468,-150.0,0.00012795,2]
[331915188,1720835432477,-163.27,0.00012797,2]
[331915189,1720835432486,-151.25675901,0.00012821,2]
[331915190,1720835432495,-2678.67549366,0.00012917,2]
[331915191,1720835432506,-1028.79,0.00012917,2]
[331915192,1720835432517,-4742.53450634,0.00012917,2]
[331915193,1720835432527,-1250.0,0.00013,2]
[331915194,1720835432536,-168.75,0.00013093,2]
[331915195,1720835432545,-230.04,0.00013109,2]
[331915196,1720835432554,-499.99,0.00013109,2]
[331915197,1720835432563,-371.10892981,0.00013128,2]
[331915198,1720835432572,-1027.56,0.00013128,2]
[331915199,1720835432581,-2744.07860706,0.00013128,2]
[331915200,1720835432591,-652.62219084,0.00013128,2]
[331915201,1720835432600,-150.0,0.00013135,2]
[331915202,1720835432609,-426.3,0.00013136,2]
[331915203,1720835432618,-5153.05114761,0.00013472,2]
[331915204,1720835432629,-2468.097,0.00013474,2]
[331915205,1720835432638,-420.0,0.000135,2]
[331915206,1720835432647,-300.0,0.00013516,2]
[331915207,1720835432656,-367.78869223,0.00013543,2]
[331915208,1720835432666,-176.43696619,0.00013543,2]
[331915209,1720835432675,-634.1751491,0.00013574,2]
[331915210,1720835432686,-91.13646255,0.00013574,2]
[331915211,1720835432695,-200.829783,0.00013667,2]
[331915213,1720835432704,-175.59596,0.00013667,2]
[331915215,1720835432713,-454.53,0.00013699,2]
[331915217,1720835432722,-250.0,0.00013699,2]
[331915219,1720835432731,-200.0,0.00013699,2]
[331915221,1720835432741,-150.0,0.00013726,2]
[331915223,1720835432750,-150.0,0.0001373,2]
[331915225,1720835432759,-150.0,0.00013739,2]
[331915226,1720835432768,-150.0,0.0001374,2]
[331915228,1720835432777,-150.0,0.00013744,2]
[331915231,1720835432787,-150.0,0.00013746,2]
[331915232,1720835432796,-150.0,0.00013752,2]
[331915234,1720835432805,-150.0,0.00013755,2]
[331915236,1720835432814,-150.0,0.00013756,2]
[331915239,1720835432824,-150.0,0.00013766,2]
[331915241,1720835432837,-150.0,0.00013768,2]
[331915243,1720835432849,-150.0,0.00013768,2]
[331915245,1720835432861,-150.0,0.00013769,2]
[331915248,1720835432873,-150.0,0.00013771,2]
[331915250,1720835432885,-150.0,0.00013776,2]
[331915252,1720835432897,-150.0,0.00013776,2]
[331915254,1720835432907,-150.0,0.00013777,2]
[331915256,1720835432917,-150.0,0.00013784,2]
[331915258,1720835432927,-150.0,0.00013784,2]
[331915259,1720835432939,-150.0,0.00013786,2]
[331915260,1720835432950,-81.45972586,0.00013787,2]
[331915261,1720835432963,-68.54027414,0.00013787,2]
[331915262,1720835432975,-150.0,0.00013796,2]
[331915263,1720835432986,-150.0,0.00013799,2]
[331915264,1720835432997,-1074.89976219,0.000138,2]
[331915265,1720835433009,-289.9511,0.000138,2]
[331915266,1720835433019,-583.9017,0.000138,2]
[331915267,1720835433030,-150.0,0.00013803,2]
[331915268,1720835433042,-150.0,0.00013803,2]
[331915269,1720835433056,-150.0,0.00013804,2]
[331915270,1720835433068,-150.0,0.00013807,2]
[331915271,1720835433079,-150.0,0.00013814,2]
[331915272,1720835433091,-150.0,0.00013833,2]
[331915273,1720835433101,-150.0,0.00013841,2]
[331915274,1720835433113,-150.0,0.00013841,2]
[331915275,1720835433123,-36.06639546,0.00013845,2]
[331915276,1720835433140,-113.93360454,0.00013845,2]
[331915277,1720835433151,-150.0,0.00013848,2]
[331915278,1720835433163,-150.0,0.00013854,2]
[331915279,1720835433174,-150.0,0.00013855,2]
[331915280,1720835433185,-497.90557,0.0001386,2]
[331915281,1720835433196,-150.0,0.00013862,2]
[331915282,1720835433206,-1969.91382706,0.00013862,2]
[331915283,1720835433218,-3130.89061258,0.00013862,2]
[331915284,1720835433228,-150.0,0.0001387,2]
[331915285,1720835433239,-150.0,0.00013872,2]
[331915286,1720835433249,-150.0,0.00013874,2]
[331915287,1720835433260,-150.0,0.00013884,2]
[331915288,1720835433271,-150.0,0.00013886,2]
[331915289,1720835433282,-200.0,0.00013887,2]
[331915290,1720835433294,-200.0,0.00013888,2]
[331915291,1720835433305,-1082.05515679,0.0001389,2]
[331915292,1720835433317,-150.0,0.00013891,2]
[331915293,1720835433328,-150.0,0.00013896,2]
[331915294,1720835433340,-920.4275,0.00013899,2]
[331915295,1720835433351,-500.0,0.00013899,2]
[331915296,1720835433364,-503.63353713,0.00013899,2]
[331915297,1720835433375,-17.46617348,0.00013899,2]
[331915298,1720835433390,-164.67677234,0.00013899,2]
[331915299,1720835433400,-150.0,0.00013899,2]
[331915300,1720835433409,-500.0,0.00013899,2]
[331915301,1720835433419,-500.0,0.00013899,2]
[331915302,1720835433428,-500.0,0.00013899,2]
[331915303,1720835433439,-169.83217228,0.00013899,2]
[331915304,1720835433450,-169.83217224,0.00013899,2]
[331915305,1720835433462,-169.83217224,0.00013899,2]
[331915306,1720835433473,-190.4052,0.000139,2]
[331915307,1720835433485,-150.0,0.000139,2]
[331915308,1720835433496,-198.46920995,0.000139,2]
[331915309,1720835433508,-384.76697756,0.000139,2]
[331915310,1720835433518,-830.08391726,0.000139,2]
[331915311,1720835433528,-129.16504526,0.00013912,2]
[331915312,1720835433543,-20.83495474,0.00013912,2]
[331915313,1720835433554,-150.0,0.00013914,2]
[331915314,1720835433564,-150.0,0.00013916,2]
[331915315,1720835433576,-137.26723504,0.00013921,2]
[331915316,1720835433590,-12.73276496,0.00013921,2]
[331915317,1720835433601,-150.0,0.00013926,2]
[331915318,1720835433611,-500.0,0.0001393,2]
[331915319,1720835433621,-500.0,0.0001393,2]
[331915320,1720835433632,-500.0,0.0001393,2]
[331915321,1720835433642,-94.07365324,0.0001393,2]
[331915322,1720835433655,-405.92634676,0.0001393,2]
[331915323,1720835433666,-225.34848448,0.0001393,2]
[331915324,1720835433692,-320.05621552,0.0001393,2]
[331915325,1720835433703,-92.75432124,0.00013931,2]
[331915326,1720835433716,-57.24567876,0.00013931,2]
[331915327,1720835433727,-150.0,0.00013932,2]
[331915328,1720835433737,-150.0,0.00013943,2]
[331915329,1720835433747,-424.48176253,0.00013954,2]
[331915330,1720835433759,-75.51823747,0.00013954,2]
[331915331,1720835433769,-500.0,0.00013954,2]
[331915332,1720835433779,-424.27048385,0.00013954,2]
[331915333,1720835433797,-75.72951615,0.00013954,2]
[331915334,1720835433807,-500.0,0.00013954,2]
[331915335,1720835433818,-150.0,0.00013958,2]
[331915336,1720835433829,-150.0,0.00013964,2]
[331915337,1720835433839,-150.0,0.00013965,2]
[331915338,1720835433850,-150.0,0.00013968,2]
[331915339,1720835433860,-150.0,0.0001397,2]
[331915340,1720835433871,-150.0,0.0001397,2]
[331915341,1720835433883,-150.0,0.00013973,2]
[331915342,1720835433893,-150.0,0.00013974,2]
[331915343,1720835433904,-150.0,0.00013981,2]
[331915344,1720835433915,-150.0,0.00013986,2]
[331915345,1720835433926,-317.55,0.00013989,3]
[331915346,1720835433936,-150.0,0.00013989,2]
[331915347,1720835433946,-417.94132628,0.0001399,3]
[331915348,1720835433957,-198.39625256,0.0001399,2]
[331915349,1720835433967,-150.0,0.00013992,2]
[331915350,1720835433977,-150.0,0.00013998,2]
[331915351,1720835433987,-294.83290501,0.00013998,2]
[331915352,1720835434040,2840.14853171,0.00011199,2]
[331915353,1720835438226,-710.95025,0.00013574,2]
[331915354,1720835438238,-688.5,0.00013574,2]
[331915355,1720835438444,-985.35649857,0.00013574,2]
[331915356,1720835438454,-169.83217224,0.000139,2]
[331915357,1720835438463,-1285.62709499,0.00013998,2]
[331915358,1720835438473,-504.36141494,0.00013998,2]
[331915359,1720835438482,-500.0,0.00013998,2]
[331915360,1720835438492,-500.0,0.00013998,2]
[331915361,1720835438501,-184.21823252,0.00013998,2]
[331915362,1720835438511,-500.0,0.00013998,2]
[331915363,1720835438520,-500.0,0.00013998,2]
[331915364,1720835438529,-500.0,0.00013998,2]
[331915365,1720835438538,-500.0,0.00013998,2]
[331915366,1720835438547,-424.24036983,0.00013998,2]
[331915367,1720835438556,-345.35401796,0.00013998,2]
[331915368,1720835438565,-500.0,0.00013998,2]
[331915369,1720835438575,-500.0,0.00013998,2]
[331915370,1720835438584,-599.88312531,0.00013998,2]
[331915371,1720835438593,-305.03374806,0.00013998,2]
[331915372,1720835438602,-505.57622652,0.00013998,2]
[331915373,1720835438612,-248.67689959,0.00013998,2]
[331915374,1720835438621,-159.82697759,0.00013998,2]
[331915375,1720835438632,-326.20986833,0.00013998,2]
[331915376,1720835438641,-500.0,0.00013998,2]
[331915377,1720835438651,-318.45847741,0.00013998,2]
[331915378,1720835438660,-170.10311747,0.00013998,2]
[331915379,1720835438669,-430.43651526,0.00013998,2]
[331915380,1720835438678,-150.47550401,0.00013998,2]
[331915381,1720835438687,-203.90828717,0.00013998,2]
[331915382,1720835438696,-500.0,0.00013998,2]
[331915383,1720835438706,-186.93960353,0.00013998,2]
[331915384,1720835438716,-2409.61,0.00013998,2]
[331915385,1720835438725,-238.42493571,0.00013998,2]
[331915386,1720835438735,-174.98304739,0.00013998,2]
[331915387,1720835438744,-271.33748021,0.00013998,2]
[331915388,1720835438753,-1625.01,0.00013998,2]
[331915389,1720835438763,-500.0,0.00013998,2]
[331915390,1720835438772,-173.64921438,0.00013998,2]
[331915391,1720835438781,-27.73134076,0.00013998,2]
[331915392,1720835438793,-472.26865924,0.00013998,2]
[331915393,1720835438803,-613.90785248,0.00013998,2]
[331915394,1720835438812,-508.61746449,0.00013998,2]
[331915395,1720835438821,-580.03853425,0.00013998,2]
[331915396,1720835438831,-500.0,0.00013998,2]
[331915397,1720835438840,-224.53008322,0.00013998,2]
[331915398,1720835438848,-272.7682413,0.00013998,2]
[331915399,1720835438857,-301.41526356,0.00013998,2]
[331915400,1720835438866,-500.0,0.00013998,2]
[331915401,1720835438875,-500.0,0.00013998,2]
[331915402,1720835438884,-351.03271732,0.00013998,2]
[331915403,1720835438893,-890.67181184,0.00013999,2]
[331915404,1720835438903,-13822.7285453,0.00013999,2]
[331915405,1720835438912,-790.93502019,0.00013999,2]
[331915406,1720835438923,-394.12782113,0.00013999,2]
[331915407,1720835438934,-714.662132,0.00013999,2]
[331915408,1720835438944,-13738.84995416,0.00013999,2]
[331915409,1720835438955,-451.21118458,0.00013999,2]
[331915410,1720835438966,-35997.81387241,0.00013999,2]
[331915411,1720835438978,-585.41820824,0.00013999,2]
[331915412,1720835438988,-676.1349052,0.00013999,2]
[331915413,1720835438999,-332.5,0.00013999,2]
[331915414,1720835439010,-589.53582903,0.00013999,2]
[331915415,1720835439021,-1023.7998315,0.00013999,2]
[331915416,1720835439032,-445.96776243,0.00013999,2]
[331915417,1720835439043,-277.761,0.00013999,2]
[331915418,1720835439058,-3453.15224832,0.00013999,2]
[331915419,1720835439069,-6729.2454671,0.00013999,2]
[331915420,1720835439080,-2821.35211378,0.00013999,2]
[331915421,1720835439091,-1847.439928,0.00013999,2]
[331915422,1720835439102,-13064.73106199,0.00013999,2]
[331915423,1720835439113,-8894.43158252,0.00013999,2]
[331915424,1720835439124,-7301.65891399,0.00013999,2]
[331915425,1720835439162,-319.90305941,0.00013999,2]
[331915426,1720835439173,-398.64828018,0.00013999,2]
[331915427,1720835439184,-610.779927,0.00013999,2]
[331915428,1720835440396,-169.83217224,0.000139,2]
[331915429,1720835440405,-101.08580517,0.00013998,2]
[331915430,1720835440678,-139.86000773,0.00013998,2]
[331915431,1720835440688,-30192.1146782,0.00013998,2]
[331915432,1720835440698,-1238.25716224,0.00013999,2]
[331915433,1720835440707,-7302.8142967,0.00013999,2]
[331915434,1720835440717,-1256.82,0.00013999,2]
[331915435,1720835440726,-1343.74157776,0.00013999,2]